bitfinex-derivatives/quotes_BTCF0:USTF0_20240815
["timestamp","ask_amount","ask_price","bid_price","bid_amount"]
[1723719264203,0.742159,58430.0,58429.0,0.1750456]
[1723719264414,0.742159,58430.0,58429.0,0.0896]
[1723719264616,0.742159,58430.0,58429.0,0.15786729]
[1723719265213,0.742159,58430.0,58429.0,0.0896]
[1723719265415,0.742159,58430.0,58429.0,0.14075672]
[1723719265911,0.743159,58430.0,58429.0,0.1016]
[1723719266118,0.744159,58430.0,58429.0,0.1146]
[1723719266411,0.744159,58430.0,58429.0,0.16572501]
[1723719267403,0.448359,58430.0,58429.0,0.1146]
[1723719270107,0.46534988,58430.0,58429.0,0.1146]
[1723719270307,0.10454988,58430.0,58429.0,0.1146]
[1723719270519,0.46534988,58430.0,58429.0,0.1146]
[1723719274626,0.46534988,58430.0,58429.0,0.11456]
[1723719278520,0.76114988,58430.0,58429.0,0.11456]
[1723719278715,0.84670888,58430.0,58429.0,0.11456]
[1723719279219,0.84670888,58430.0,58429.0,0.025]
[1723719280012,0.84570888,58430.0,58429.0,0.013]
[1723719280223,0.84670888,58430.0,58429.0,0.022]
[1723719280422,0.84570888,58430.0,58429.0,0.009]
[1723719280723,0.84670888,58430.0,58429.0,0.019]
[1723719283720,0.76114988,58430.0,58429.0,0.019]
[1723719283920,0.58364988,58430.0,58429.0,0.019]
[1723719285527,0.66920888,58430.0,58429.0,0.019]
[1723719290230,0.75476788,58430.0,58429.0,0.019]
[1723719290533,0.63646788,58430.0,58429.0,0.019]
[1723719290831,0.75476788,58430.0,58429.0,0.019]
[1723719291129,0.37979088,58430.0,58429.0,0.019]
[1723719291321,0.49809088,58430.0,58429.0,0.019]
[1723719291727,0.49809088,58430.0,58429.0,0.01]
[1723719291728,0.59264988,58430.0,58429.0,0.01]
[1723719292031,0.59164988,58430.0,58429.0,0.001]
[1723719292227,0.59964988,58430.0,58429.0,0.002]
[1723719292526,0.59964988,58430.0,58429.0,0.18014556]
[1723719293028,0.59564988,58430.0,58429.0,0.17914556]
[1723719293330,0.59564988,58430.0,58429.0,0.0864456]
[1723719293532,0.58564988,58430.0,58429.0,0.09680714]
[1723719293731,0.63691123,58430.0,58429.0,0.18244401]
[1723719293935,0.51861123,58430.0,58429.0,0.18244401]
[1723719294134,0.51861123,58430.0,58429.0,0.17844401]
[1723719294135,0.52261123,58430.0,58429.0,0.17844401]
[1723719295628,0.47134988,58430.0,58429.0,0.08552334]
[1723719295934,0.46734988,58430.0,58429.0,0.08552334]
[1723719296139,0.47034988,58430.0,58429.0,0.08552334]
[1723719296825,0.46934988,58430.0,58429.0,0.08552334]
[1723719297024,0.43510371,58430.0,58429.0,0.17844876]
[1723719297336,0.3668,58430.0,58429.0,0.2810695]
[1723719297526,0.3668,58430.0,58429.0,0.17844876]
[1723719298227,0.3668,58430.0,58429.0,0.17781931]
[1723719298434,0.3648,58430.0,58429.0,0.18681931]
[1723719298635,0.3628,58430.0,58429.0,0.19481931]
[1723719298959,0.3628,58430.0,58429.0,0.29744005]
[1723719299139,0.3628,58430.0,58429.0,0.19481931]
[1723719299436,0.3618,58430.0,58429.0,0.10525831]
[1723719300128,0.446359,58430.0,58429.0,0.10025831]
[1723719300530,0.446359,58430.0,58429.0,0.09625831]
[1723719300728,0.446359,58430.0,58429.0,0.09925831]
[1723719300929,0.446359,58430.0,58429.0,0.09525831]
[1723719301129,0.446359,58430.0,58429.0,0.09825831]
[1723719301332,0.446359,58430.0,58429.0,0.09525831]
[1723719302442,0.446359,58430.0,58429.0,0.09225831]
[1723719302641,0.449359,58430.0,58429.0,0.09225831]
[1723719303137,0.452359,58430.0,58429.0,0.09225831]
[1723719303735,0.537918,58430.0,58429.0,0.09225831]
[1723719303939,0.537918,58430.0,58424.0,0.0002568]
[1723719303940,0.085566,58425.0,58424.0,0.0002568]
[1723719304137,0.531932,58425.0,58424.0,0.09420251]
[1723719304344,0.446366,58425.0,58424.0,0.09420251]
[1723719304942,0.531932,58425.0,58424.0,0.17970609]
[1723719305333,0.531932,58425.0,58424.0,0.18270609]
[1723719305638,1.52962309,58425.0,58420.0,0.08346675]
[1723719305941,0.44978134,58421.0,58418.0,0.06841006]
[1723719306145,0.171156,58417.0,58416.0,0.00018313]
[1723719307430,0.085583,58414.0,58413.0,0.05125835]
[1723719307640,0.827766,58414.0,58413.0,0.05125835]
[1723719307841,0.171168,58413.0,58412.0,0.05125835]
[1723719308340,0.17117,58412.0,58411.0,0.0002568]
[1723719308543,0.22258535,58412.0,58411.0,0.0002568]
[1723719308733,0.17135313,58412.0,58411.0,0.0002568]
[1723719310345,0.08576813,58412.0,58411.0,0.0002568]
[1723719310650,0.08576813,58412.0,58411.0,0.0052568]
[1723719311237,0.17135313,58412.0,58411.0,0.0052568]
[1723719311847,0.17135313,58412.0,58411.0,0.0102568]
[1723719312055,0.08576813,58412.0,58411.0,0.0102568]
[1723719312352,0.17135313,58412.0,58411.0,0.0102568]
[1723719312939,0.08576813,58412.0,58411.0,0.0102568]
[1723719313764,0.44656813,58412.0,58411.0,0.0102568]
[1723719314244,0.53215313,58412.0,58411.0,0.0102568]
[1723719315443,0.44656813,58412.0,58411.0,0.0102568]
[1723719316544,0.53215313,58412.0,58411.0,0.0102568]
[1723719319555,0.53215313,58412.0,58411.0,0.0102168]
[1723719321855,0.17135313,58412.0,58411.0,0.0102168]
[1723719322058,0.89295313,58412.0,58411.0,0.0102168]
[1723719323157,0.085598,58404.0,58398.0,0.05123149]
[1723719323347,0.742205,58399.0,58398.0,0.0811]
[1723719324660,0.742205,58399.0,58398.0,0.0851]
[1723719324855,0.742205,58399.0,58398.0,0.0971]
[1723719325067,0.446405,58399.0,58398.0,0.0971]
[1723719325865,0.085601,58402.0,58398.0,0.171706]
[1723719326077,0.085601,58402.0,58398.0,0.167706]
[1723719326265,0.085601,58402.0,58398.0,0.168706]
[1723719326966,0.085602,58401.0,58398.0,0.167706]
[1723719327265,0.085605,58399.0,58398.0,0.22193749]
[1723719327472,0.446405,58399.0,58398.0,0.13633149]
[1723719327670,0.446405,58399.0,58398.0,0.13333149]
[1723719327863,0.446405,58399.0,58398.0,0.13533149]
[1723719328062,0.446405,58399.0,58398.0,0.13833149]
[1723719329171,0.3608,58399.0,58398.0,0.13833149]
[1723719329362,0.3608,58399.0,58398.0,0.13533149]
[1723719329668,0.3608,58399.0,58398.0,0.13933149]
[1723719330567,0.3608,58399.0,58398.0,0.0881]
[1723719331072,0.446405,58399.0,58398.0,0.0881]
[1723719332782,0.085605,58399.0,58398.0,0.0881]
[1723719333587,0.0856,58402.0,58401.0,0.085602]
[1723719334686,0.0856,58402.0,58401.0,0.085562]
[1723719335782,0.0002568,58404.0,58403.0,0.085599]
[1723719336187,0.0858538,58404.0,58403.0,0.999279]
[1723719337276,0.0858538,58404.0,58403.0,0.7829829]
[1723719338284,0.0858538,58404.0,58403.0,0.7879829]
[1723719338886,0.0868538,58404.0,58403.0,0.7939829]
[1723719339884,0.2052538,58404.0,58403.0,0.7939829]
[1723719340385,0.1196568,58404.0,58403.0,0.7939829]
[1723719343003,0.0012568,58404.0,58403.0,0.7939829]
[1723719343187,0.00018313,58412.0,58411.0,0.085587]
[1723719343493,0.3608,58418.0,58417.0,0.085578]
[1723719343695,0.3608,58418.0,58417.0,0.17019863]
[1723719344295,0.446377,58418.0,58417.0,0.17019863]
[1723719345287,0.446377,58418.0,58417.0,0.25656022]
[1723719345487,0.457377,58418.0,58417.0,0.25656022]
[1723719345698,0.3718,58418.0,58417.0,0.25656022]
[1723719346195,0.457377,58418.0,58417.0,0.17193959]
[1723719346694,0.468377,58418.0,58417.0,0.17293959]
[1723719346899,0.3828,58418.0,58417.0,0.087578]
[1723719347207,0.3718,58418.0,58417.0,0.18698292]
[1723719347399,0.3618,58418.0,58417.0,0.19198292]
[1723719347592,0.3618,58418.0,58417.0,0.19598292]
[1723719348189,0.3618,58418.0,58417.0,0.19574936]
[1723719348594,0.002,58418.0,58417.0,0.19974936]
[1723719349398,0.001,58418.0,58417.0,0.19174936]
[1723719349592,0.002,58418.0,58417.0,0.19974936]
[1723719349793,0.002,58418.0,58417.0,0.66308224]
[1723719350100,0.002,58418.0,58417.0,0.66508224]
[1723719350294,0.002,58418.0,58417.0,0.56254936]
[1723719350900,0.0002568,58423.0,58422.0,0.085571]
[1723719351312,0.0002568,58423.0,58422.0,0.174471]
[1723719352896,0.0002568,58423.0,58422.0,0.176471]
[1723719353099,0.0002568,58423.0,58422.0,0.178471]
[1723719358508,0.0858258,58423.0,58422.0,0.178471]
[1723719359600,0.0858258,58423.0,58422.0,0.089571]
[1723719360001,0.0858258,58423.0,58422.0,0.087571]
[1723719360321,0.0858258,58423.0,58422.0,0.088571]
[1723719360493,0.0002568,58423.0,58422.0,0.086571]
[1723719360694,0.0002568,58423.0,58422.0,0.447371]
[1723719360895,0.0002568,58423.0,58422.0,0.087571]
[1723719361305,0.0002568,58423.0,58422.0,0.25537287]
[1723719361508,0.085559,58431.0,58428.0,0.085562]
[1723719361708,0.085559,58431.0,58429.0,0.05110311]
[1723719361902,0.085559,58431.0,58429.0,0.13666311]
[1723719362209,0.3608,58432.0,58431.0,0.085558]
[1723719362407,0.3608,58438.0,58431.0,0.085558]
[1723719362704,0.10037122,58437.0,58431.0,0.13666111]
[1723719362899,0.10037122,58437.0,58432.0,0.05110311]
[1723719363404,0.085554,58434.0,58432.0,0.05110311]
[1723719363600,0.085554,58434.0,58433.0,0.05110311]
[1723719364007,0.203854,58434.0,58432.0,0.05110311]
[1723719364203,0.203854,58434.0,58433.0,0.05110311]
[1723719364403,0.203854,58434.0,58432.0,0.05210311]
[1723719364612,0.446355,58433.0,58432.0,0.05310311]
[1723719364809,0.446355,58433.0,58432.0,0.002]
[1723719365308,0.446355,58433.0,58432.0,0.05210311]
[1723719365508,0.446355,58433.0,58432.0,0.001]
[1723719366312,0.53191,58433.0,58432.0,0.001]
[1723719366501,0.085556,58432.0,58431.0,0.05110311]
[1723719366702,0.085558,58431.0,58430.0,0.05110311]
[1723719366905,0.203858,58431.0,58430.0,0.05110311]
[1723719367305,0.085561,58429.0,58428.0,0.06817166]
[1723719368200,0.085563,58428.0,58426.0,0.0002568]
[1723719369413,0.085563,58428.0,58426.0,0.08545867]
[1723719369600,0.087563,58428.0,58426.0,0.08545867]
[1723719370197,0.087563,58428.0,58427.0,0.08520187]
[1723719370907,0.085564,58427.0,58426.0,0.08545867]
[1723719371110,0.085564,58427.0,58426.0,0.08405459]
[1723719372409,0.088564,58427.0,58426.0,0.08405459]
[1723719373114,0.090564,58427.0,58426.0,0.08405459]
[1723719373320,0.090564,58427.0,58426.0,0.18658747]
[1723719373611,0.005,58427.0,58426.0,0.27215247]
[1723719374115,0.005,58427.0,58426.0,0.16961959]
[1723719374412,0.005,58427.0,58426.0,0.265324]
[1723719375509,0.090564,58427.0,58426.0,0.16961959]
[1723719376213,0.090564,58427.0,58426.0,0.26540341]
[1723719376609,0.090564,58427.0,58426.0,0.16961959]
[1723719377317,0.090564,58427.0,58426.0,0.26540596]
[1723719378409,0.005,58427.0,58426.0,0.26540596]
[1723719378610,0.3608,58434.0,58433.0,0.085555]
[1723719378912,0.3608,58434.0,58433.0,0.16935279]
[1723719379220,0.3608,58434.0,58433.0,0.26444548]
[1723719379407,0.3608,58434.0,58433.0,0.16935279]
[1723719379610,0.446353,58434.0,58433.0,0.16935279]
[1723719379819,0.446353,58434.0,58433.0,0.2719141]
[1723719380026,0.446353,58434.0,58433.0,0.16935279]
[1723719380207,0.457353,58434.0,58433.0,0.17035279]
[1723719380433,0.096553,58434.0,58433.0,0.17035279]
[1723719380714,0.096553,58434.0,58433.0,0.26625037]
[1723719380715,0.106553,58434.0,58433.0,0.26625037]
[1723719381213,0.106553,58434.0,58433.0,0.17135279]
[1723719381806,0.106553,58434.0,58433.0,0.2738919]
[1723719382515,0.106553,58434.0,58433.0,0.17135279]
[1723719382718,0.467353,58434.0,58433.0,0.2740883]
[1723719382921,0.467353,58434.0,58433.0,0.17154919]
[1723719383912,0.3818,58434.0,58433.0,0.17154919]
[1723719384909,0.467353,58434.0,58433.0,0.08599419]
[1723719385110,0.763153,58434.0,58433.0,0.08745625]
[1723719385723,0.763153,58434.0,58433.0,0.17222834]
[1723719386023,0.763153,58434.0,58433.0,0.17210804]
[1723719386221,0.763153,58434.0,58433.0,0.17209372]
[1723719386420,0.763153,58434.0,58433.0,0.17209998]
[1723719387224,0.848706,58434.0,58433.0,0.08745625]
[1723719387416,0.848706,58434.0,58427.0,0.10253911]
[1723719387417,0.085558,58431.0,58430.0,0.08545625]
[1723719387721,0.085559,58430.0,58428.0,0.08547572]
[1723719387914,0.085561,58429.0,58428.0,0.08547572]
[1723719388133,0.3608,58432.0,58426.0,0.0002568]
[1723719388134,0.085563,58428.0,58426.0,0.0002568]
[1723719388340,0.085563,58428.0,58427.0,0.0850711]
[1723719390029,0.203863,58428.0,58427.0,0.0850711]
[1723719391026,0.207863,58428.0,58427.0,0.0850711]
[1723719391227,0.210863,58428.0,58427.0,0.0850711]
[1723719391525,0.571663,58428.0,58427.0,0.0850711]
[1723719392323,0.210863,58428.0,58427.0,0.0850711]
[1723719392524,0.58757525,58428.0,58427.0,0.0850711]
[1723719399030,0.58757525,58428.0,58427.0,0.17054158]
[1723719404230,0.22677525,58428.0,58427.0,0.17054158]
[1723719404434,0.58757525,58428.0,58427.0,0.17054158]
[1723719405437,0.58757525,58428.0,58427.0,0.17135116]
[1723719406630,0.085564,58427.0,58426.0,0.08572728]
[1723719406842,0.085564,58427.0,58426.0,0.17163459]
[1723719407934,0.087564,58427.0,58426.0,0.17163459]
[1723719408931,0.037564,58427.0,58426.0,0.17163459]
[1723719409741,0.039564,58427.0,58426.0,0.17163459]
[1723719409942,0.039564,58427.0,58426.0,0.17166121]
[1723719410540,0.039564,58427.0,58426.0,0.08619073]
[1723719413238,0.400364,58427.0,58426.0,0.08619073]
[1723719414943,0.400364,58427.0,58426.0,0.18872984]
[1723719416564,0.400364,58427.0,58426.0,0.08619073]
[1723719418945,0.400364,58427.0,58426.0,0.08618562]
[1723719420434,0.039564,58427.0,58426.0,0.08618562]
[1723719420635,0.400364,58427.0,58426.0,0.08618562]
[1723719421053,0.039564,58427.0,58426.0,0.08618562]
[1723719421234,0.400364,58427.0,58426.0,0.08618562]
[1723719422139,0.400364,58427.0,58426.0,0.08621737]
[1723719422737,0.400364,58427.0,58426.0,0.18479107]
[1723719423241,0.518664,58427.0,58426.0,0.18479107]
[1723719424376,0.518664,58427.0,58426.0,0.08621737]
[1723719426049,0.518664,58427.0,58426.0,0.18889121]
[1723719428250,0.518664,58427.0,58426.0,0.33798393]
[1723719428750,0.157864,58427.0,58426.0,0.33798399]
[1723719431449,0.157864,58427.0,58426.0,0.33862501]
[1723719431871,0.157864,58427.0,58426.0,0.18953223]
[1723719432050,0.157864,58427.0,58426.0,0.33862501]
[1723719432845,0.157864,58427.0,58426.0,0.23595117]
[1723719433046,0.157864,58427.0,58426.0,0.33423875]
[1723719435056,0.1223,58427.0,58426.0,0.41980375]
[1723719435241,0.004,58427.0,58426.0,0.41980375]
[1723719435448,0.1223,58427.0,58426.0,0.41980375]
[1723719435667,0.1223,58427.0,58426.0,0.27071097]
[1723719435847,0.1223,58427.0,58426.0,0.41979504]
[1723719436144,0.1223,58427.0,58426.0,0.4188561]
[1723719439270,0.1223,58427.0,58426.0,0.26977203]
[1723719439458,0.1223,58427.0,58426.0,0.41885584]
[1723719440656,0.207864,58427.0,58426.0,0.42056476]
[1723719440867,0.207864,58427.0,58426.0,0.23636953]
[1723719443042,0.207864,58427.0,58426.0,0.23637116]
[1723719444959,0.207864,58427.0,58426.0,0.23643666]
[1723719445361,0.207864,58427.0,58426.0,0.2364367]
[1723719448051,0.207864,58427.0,58426.0,0.33512929]
[1723719449664,0.207864,58427.0,58426.0,0.14934228]
[1723719450160,0.207864,58427.0,58426.0,0.33513774]
[1723719450464,0.207864,58427.0,58426.0,0.33513772]
[1723719450682,0.207864,58427.0,58426.0,0.18605226]
[1723719450864,0.207864,58427.0,58426.0,0.33513676]
[1723719451056,0.207864,58427.0,58426.0,0.41743676]
[1723719451955,0.207864,58427.0,58426.0,0.41743681]
[1723719452768,0.207864,58427.0,58426.0,0.23164135]
[1723719453864,0.207864,58427.0,58426.0,0.31720635]
[1723719454063,0.207864,58427.0,58426.0,0.31721523]
[1723719456661,0.207864,58427.0,58426.0,0.50334376]
[1723719457361,0.207864,58427.0,58426.0,0.40449327]
[1723719457563,0.207864,58427.0,58426.0,0.31892827]
[1723719457873,0.207864,58427.0,58426.0,0.23662827]
[1723719458969,0.207864,58427.0,58426.0,0.08753484]
[1723719459364,0.207864,58427.0,58426.0,0.0002568]
[1723719460270,0.207864,58427.0,58426.0,0.1493509]
[1723719461386,0.207864,58427.0,58426.0,0.0002568]
[1723719461565,0.207864,58427.0,58426.0,0.14935094]
[1723719461764,0.207864,58427.0,58426.0,0.33957824]
[1723719464168,0.207864,58427.0,58426.0,0.33957301]
[1723719468982,0.207864,58427.0,58426.0,0.33957367]
[1723719469683,0.207864,58427.0,58426.0,0.23691606]
[1723719469976,0.089564,58427.0,58426.0,0.23691606]
[1723719470167,0.207864,58427.0,58426.0,0.23691606]
[1723719471868,0.207864,58427.0,58426.0,0.33957943]
[1723719472576,0.207864,58427.0,58426.0,0.23691606]
[1723719472778,0.207864,58427.0,58426.0,0.33957979]
[1723719473168,0.207864,58427.0,58426.0,0.23691606]
[1723719474576,0.207864,58427.0,58426.0,0.08782192]
[1723719476295,0.293428,58427.0,58426.0,0.08782192]
[1723719476468,1.34379878,58427.0,58426.0,0.06316529]
[1723719476705,1.34379878,58427.0,58416.0,0.11982769]
[1723719476706,1.1212138,58427.0,58424.0,0.0684368]
[1723719476892,0.085569,58423.0,58422.0,0.05699149]
[1723719477069,0.085569,58423.0,58408.0,0.078]
[1723719477070,0.08559,58409.0,58408.0,0.078]
[1723719477265,0.56469,58409.0,58408.0,0.078]
[1723719477568,0.085597,58404.0,58400.0,0.15107379]
[1723719477770,0.085597,58404.0,58398.0,0.085605]
[1723719477771,0.203897,58404.0,58401.0,0.078]
[1723719477969,0.203897,58404.0,58403.0,0.0823568]
[1723719478392,0.1183,58404.0,58403.0,0.0823568]
[1723719479073,0.1193,58404.0,58403.0,0.0883568]
[1723719479573,0.13424138,58404.0,58403.0,0.0943568]
[1723719482280,0.13424138,58404.0,58403.0,0.16256725]
[1723719483073,0.13424138,58404.0,58403.0,0.0943568]
[1723719484982,0.21983838,58404.0,58403.0,0.0943568]
[1723719485279,0.21983838,58404.0,58403.0,0.06338732]
[1723719485476,0.21983838,58404.0,58403.0,0.0122568]
[1723719485477,0.30543538,58404.0,58403.0,0.0122568]
[1723719485675,0.085606,58398.0,58397.0,0.05112074]
[1723719486010,0.564706,58398.0,58397.0,0.05112074]
[1723719486377,0.564706,58398.0,58393.0,0.1623]
[1723719486378,0.085608,58397.0,58396.0,0.05112074]
[1723719486570,0.203908,58397.0,58395.0,0.05112074]
[1723719486880,0.203909,58396.0,58394.0,0.05112074]
[1723719487379,0.1183,58396.0,58393.0,0.21342074]
[1723719487578,0.1183,58397.0,58395.0,0.05112074]
[1723719487882,0.1183,58397.0,58396.0,0.13238426]
[1723719488067,0.01494127,58398.0,58396.0,0.1996]
[1723719488267,0.0002568,58401.0,58397.0,0.085608]
[1723719488479,0.001,58398.0,58397.0,0.092608]
[1723719488674,0.002,58398.0,58397.0,0.15069015]
[1723719488870,0.002,58398.0,58397.0,0.099608]
[1723719489076,0.001,58398.0,58397.0,0.092608]
[1723719489484,0.0868588,58401.0,58397.0,0.087608]
[1723719489692,0.10157716,58401.0,58398.0,0.05106669]
[1723719489879,0.2051588,58401.0,58398.0,0.05106669]
[1723719490084,0.2051588,58401.0,58400.0,0.085603]
[1723719490785,0.0012568,58401.0,58400.0,0.085603]
[1723719491482,0.0002568,58401.0,58400.0,0.085603]
[1723719491784,0.0012568,58401.0,58400.0,0.085603]
[1723719492276,0.0012568,58401.0,58400.0,0.092603]
[1723719492480,0.0022568,58401.0,58400.0,0.099603]
[1723719492880,0.1205568,58401.0,58400.0,0.099603]
[1723719494379,0.0022568,58401.0,58400.0,0.099603]
[1723719495189,0.0022568,58401.0,58400.0,0.16781345]
[1723719495577,0.0022568,58401.0,58400.0,0.099603]
[1723719495980,0.0022568,58401.0,58400.0,0.16781345]
[1723719497386,0.1205568,58401.0,58400.0,0.16781345]
[1723719498482,0.1205568,58401.0,58400.0,0.099603]
[1723719499189,0.0022568,58401.0,58400.0,0.099603]
[1723719501086,0.0022568,58401.0,58400.0,0.460403]
[1723719501291,0.1205568,58401.0,58400.0,0.460403]
[1723719501487,0.1205568,58401.0,58400.0,0.53959672]
[1723719502387,0.1205568,58401.0,58400.0,0.5396384]
[1723719503991,0.0022568,58401.0,58400.0,0.5396384]
[1723719504520,0.0022568,58401.0,58400.0,0.64180257]
[1723719505595,0.0022568,58401.0,58400.0,0.63167504]
[1723719515694,0.0022568,58401.0,58400.0,0.54607204]
[1723719515946,0.0022568,58401.0,58400.0,0.0932354]
[1723719515947,0.1734608,58401.0,58400.0,0.0932354]
[1723719516196,0.171206,58400.0,58399.0,0.05784969]
[1723719516385,0.085612,58394.0,58393.0,0.17990225]
[1723719517598,0.086612,58394.0,58393.0,0.18690225]
[1723719518599,0.087612,58394.0,58393.0,0.19390225]
[1723719519284,0.087612,58394.0,58393.0,0.0913]
[1723719519693,0.10215207,58394.0,58393.0,0.014]
[1723719520096,0.10215207,58394.0,58393.0,0.11660225]
[1723719520397,0.10215207,58394.0,58393.0,0.014]
[1723719521282,0.22045207,58394.0,58393.0,0.014]
[1723719521996,0.22045207,58394.0,58393.0,0.008]
[1723719522691,0.22045207,58394.0,58393.0,0.001]
[1723719525996,0.22045207,58394.0,58393.0,0.06930914]
[1723719526195,0.22045207,58394.0,58393.0,0.001]
[1723719528502,0.10215207,58394.0,58393.0,0.06929223]
[1723719528703,0.22045207,58394.0,58393.0,0.001]
[1723719528903,0.01654007,58394.0,58393.0,0.086613]
[1723719529797,0.13484007,58394.0,58393.0,0.086613]
[1723719534509,0.13484007,58394.0,58393.0,0.1642936]
[1723719534899,0.13484007,58394.0,58393.0,0.086613]
[1723719535705,0.01654007,58394.0,58393.0,0.086613]
[1723719536117,0.01654007,58394.0,58393.0,0.16430921]
[1723719536312,0.002,58394.0,58393.0,0.52510921]
[1723719536612,0.1183,58399.0,58398.0,0.085606]
[1723719538114,0.203905,58399.0,58398.0,0.085606]
[1723719538614,0.085609,58397.0,58395.0,0.08561]
[1723719538809,0.1183,58396.0,58395.0,0.08561]
[1723719539114,0.1183,58396.0,58395.0,0.16300793]
[1723719539512,0.203909,58396.0,58395.0,0.16300793]
[1723719539814,0.203909,58396.0,58395.0,0.16400793]
[1723719540408,0.204909,58396.0,58395.0,0.16500793]
[1723719540709,0.205909,58396.0,58395.0,0.16700793]
[1723719540936,0.1203,58396.0,58395.0,0.16700793]
[1723719541708,0.002,58396.0,58395.0,0.16700793]
[1723719541901,0.002,58396.0,58395.0,0.28530793]
[1723719542503,0.002,58396.0,58395.0,0.28536082]
[1723719542707,0.087609,58396.0,58395.0,0.16706082]
[1723719543111,0.087609,58396.0,58395.0,0.08145082]
[1723719544819,0.087609,58396.0,58395.0,0.18405307]
[1723719545519,0.087609,58396.0,58395.0,0.08145082]
[1723719546418,0.087609,58396.0,58395.0,0.18408823]
[1723719546722,0.087609,58396.0,58395.0,0.08145082]
[1723719547317,0.087609,58396.0,58395.0,0.16706082]
[1723719547918,0.002,58396.0,58395.0,0.16706082]
[1723719548220,0.002,58396.0,58395.0,0.25734905]
[1723719550219,0.1203,58396.0,58395.0,0.25734905]
[1723719550625,0.205909,58396.0,58395.0,0.25734905]
[1723719550821,0.652318,58396.0,58395.0,0.08145082]
[1723719551013,0.652318,58396.0,58395.0,0.08950438]
[1723719551213,0.652318,58396.0,58395.0,0.004]
[1723719552022,0.448409,58396.0,58395.0,0.004]
[1723719553013,0.448409,58396.0,58395.0,0.08950438]
[1723719554420,0.448409,58396.0,58395.0,0.16784491]
[1723719557030,0.534018,58396.0,58395.0,0.16784491]
[1723719557326,0.534018,58396.0,58395.0,0.004]
[1723719560124,0.17122,58395.0,58394.0,0.08550438]
[1723719560332,0.17122,58395.0,58394.0,0.16405789]
[1723719560627,0.17122,58395.0,58394.0,0.16405624]
[1723719561526,0.17322,58395.0,58394.0,0.16705624]
[1723719561730,0.08761,58395.0,58394.0,0.16705624]
[1723719562031,0.08761,58395.0,58394.0,0.08155186]
[1723719562223,0.08761,58395.0,58394.0,0.16706505]
[1723719562924,0.44841,58395.0,58394.0,0.08155186]
[1723719563430,0.44841,58395.0,58394.0,0.16706079]
[1723719563625,0.44841,58395.0,58394.0,0.08155186]
[1723719564615,0.46273864,58395.0,58394.0,0.16706021]
[1723719565115,0.46273864,58395.0,58394.0,0.16698596]
[1723719565620,0.54834864,58395.0,58394.0,0.08850835]
[1723719566015,0.54834864,58395.0,58394.0,0.003]
[1723719568234,0.54834864,58395.0,58394.0,0.16706911]
[1723719568439,0.54834864,58395.0,58394.0,0.16706776]
[1723719568930,0.18754864,58395.0,58394.0,0.16706776]
[1723719569130,0.54834864,58395.0,58394.0,0.16706776]
[1723719569325,0.54834864,58395.0,58394.0,0.08850835]
[1723719569525,0.54834864,58395.0,58394.0,0.16706705]
[1723719570128,0.18754864,58395.0,58394.0,0.16706705]
[1723719570326,0.54834864,58395.0,58394.0,0.16706705]
[1723719571326,0.84434864,58395.0,58394.0,0.16706705]
[1723719571522,1.72383464,58395.0,58391.0,0.08576515]
[1723719571731,0.082,58394.0,58391.0,0.0002568]
[1723719571930,0.133336,58394.0,58391.0,0.0002568]
[1723719572135,0.051336,58393.0,58391.0,0.0002568]
[1723719572637,0.17123,58392.0,58391.0,0.0002568]
[1723719572839,0.222566,58392.0,58391.0,0.0002568]
[1723719573528,0.17123,58392.0,58391.0,0.0002568]
[1723719573828,0.28963,58392.0,58391.0,0.0002568]
[1723719574625,0.29063,58392.0,58391.0,0.0002568]
[1723719574825,0.29163,58392.0,58391.0,0.0002568]
[1723719575737,0.171242,58388.0,58387.0,0.08550835]
[1723719575945,0.085622,58387.0,58383.0,0.08550835]
[1723719576132,0.204027,58384.0,58383.0,0.08549381]
[1723719576528,0.204027,58384.0,58383.0,0.16553787]
[1723719577335,0.085628,58383.0,58382.0,0.16573683]
[1723719577530,0.085628,58383.0,58382.0,0.24585494]
[1723719577733,0.085628,58383.0,58382.0,0.2458528]
[1723719578437,0.085628,58383.0,58382.0,0.16038652]
[1723719578634,0.085628,58383.0,58382.0,0.16033254]
[1723719578838,0.086628,58383.0,58382.0,0.16033254]
[1723719579036,0.10112495,58383.0,58382.0,0.16033254]
[1723719580037,0.10212495,58383.0,58382.0,0.16033254]
[1723719581436,0.10212495,58383.0,58382.0,0.24581619]
[1723719582631,0.10212495,58383.0,58382.0,0.16574113]
[1723719582845,0.22052495,58383.0,58382.0,0.16574113]
[1723719583733,0.10212495,58383.0,58382.0,0.25137113]
[1723719584041,0.10012495,58383.0,58382.0,0.24594444]
[1723719584250,0.10212495,58383.0,58382.0,0.24594444]
[1723719584437,0.002,58383.0,58382.0,0.24594444]
[1723719586636,0.087628,58383.0,58382.0,0.24594444]
[1723719587636,0.087628,58383.0,58382.0,0.24568499]
[1723719592262,0.087628,58383.0,58382.0,0.24568392]
[1723719595034,0.087628,58383.0,58382.0,0.34828001]
[1723719596648,0.087628,58383.0,58382.0,0.34824448]
[1723719597177,0.087628,58383.0,58382.0,0.24564839]
[1723719597746,0.087628,58383.0,58382.0,0.16001839]
[1723719597948,0.173256,58383.0,58382.0,0.16001839]
[1723719598651,0.173256,58383.0,58382.0,0.24626126]
[1723719599583,0.22455212,58383.0,58382.0,0.16617101]
[1723719599948,0.22455212,58383.0,58382.0,0.08570123]
[1723719600447,0.173256,58383.0,58382.0,0.08066499]
[1723719600645,0.087628,58383.0,58382.0,0.08073676]
[1723719600955,0.002,58383.0,58382.0,0.38740089]
[1723719601156,0.002,58383.0,58382.0,0.37737073]
[1723719601452,0.002,58383.0,58382.0,0.37487073]
[1723719602460,0.00215437,58383.0,58382.0,0.88871073]
[1723719602653,0.00215437,58383.0,58382.0,0.52406053]
[1723719603047,0.01377849,58387.0,58386.0,0.085624]
[1723719603350,0.05129612,58397.0,58386.0,0.75923827]
[1723719603562,0.00842404,58399.0,58398.0,0.085606]
[1723719603742,0.06844801,58414.0,58399.0,0.085604]
[1723719603948,0.01402005,58414.0,58412.0,0.085584]
[1723719604247,0.05132967,58416.0,58413.0,0.0841]
[1723719604447,0.085584,58414.0,58413.0,0.0841]
[1723719605047,0.089584,58414.0,58413.0,0.0841]
[1723719605249,0.089584,58414.0,58413.0,0.15232126]